fUST/lending_fUST_20250814
["ID","MTS","AMOUNT","RATE_DAILY","PERIOD"]
[379184737,1755179462776,-460.0,0.00016438,2]
[379184739,1755179462786,-182.03440314,0.00016438,2]
[379184741,1755179462795,-500.0,0.00016473,2]
[379184743,1755179462805,-97.96559686,0.00016712,2]
[379184745,1755179462817,-283.692,0.00016712,2]
[379184747,1755179462828,-78.34240314,0.00016712,2]
[379184749,1755179462838,-460.0,0.00016712,2]
[379184751,1755179462848,-500.0,0.00016973,2]
[379184753,1755179462857,-500.58545385,0.00016973,2]
[379184755,1755179462867,-621.853449,0.00016973,2]
[379184757,1755179462876,-500.0,0.00016973,2]
[379184759,1755179462886,-500.0,0.00016973,2]
[379184761,1755179462896,-500.0,0.00016973,2]
[379184763,1755179462905,-460.0,0.00016986,2]
[379184765,1755179462915,-460.0,0.0001726,2]
[379184767,1755179462924,-1000.0,0.00017521,2]
[379184769,1755179462933,-1000.0,0.00017521,2]
[379184771,1755179462943,-813.73,0.00017534,2]
[379184773,1755179462954,-314.63,0.00017534,2]
[379184775,1755179462964,-813.73,0.00017808,2]
[379184777,1755179462973,-1500.0,0.00018068,2]
[379184779,1755179462985,-1500.0,0.00018068,2]
[379184781,1755179462994,-151.0,0.00018356,2]
[379184783,1755179463004,-151.0,0.00018356,2]
[379184785,1755179463014,-2094.75,0.00018356,2]
[379184787,1755179463024,-460.0,0.00018356,2]
[379184789,1755179463035,-151.0,0.00018356,2]
[379184791,1755179463045,-500.0,0.00018356,2]
[379184793,1755179463054,-460.0,0.00018356,2]
[379184795,1755179463064,-2468.85,0.00018356,2]
[379184797,1755179463075,-500.0,0.00018356,2]
[379184799,1755179463085,-460.0,0.00018356,2]
[379184802,1755179463096,-500.0,0.00018356,2]
[379184804,1755179463106,-622.8,0.00018356,2]
[379184806,1755179463116,-460.0,0.00018356,2]
[379184808,1755179463126,-1322.93,0.00018356,2]
[379184810,1755179463138,-460.0,0.00018356,2]
[379184812,1755179463147,-460.0,0.00018356,2]
[379184813,1755179463157,-972.08,0.00018356,2]
[379184816,1755179463167,-460.0,0.00018356,2]
[379184817,1755179463176,-10816.98,0.00018356,2]
[379184820,1755179463187,-460.0,0.00018356,2]
[379184822,1755179463197,-6185.43,0.00018356,2]
[379184823,1755179463206,-460.0,0.00018356,2]
[379184826,1755179463216,-2928.93,0.00018356,2]
[379184828,1755179463228,-460.0,0.00018356,2]
[379184829,1755179463238,-3749.49,0.00018356,2]
[379184831,1755179463247,-766.24,0.00018356,2]
[379184833,1755179463257,-1261.39,0.00018356,2]
[379184835,1755179463267,-469.88,0.00018356,2]
[379184837,1755179463277,-460.0,0.00018356,2]
[379184839,1755179463288,-460.0,0.00018356,2]
[379184842,1755179463300,-151.0,0.00018356,2]
[379184844,1755179463310,-460.0,0.00018356,2]
[379184846,1755179463321,-2505.67,0.00018356,2]
[379184848,1755179463331,-460.0,0.00018356,2]
[379184850,1755179463342,-586.75,0.00018356,2]
[379184852,1755179463352,-1867.94,0.00018356,2]
[379184854,1755179463362,-1231.71,0.00018356,2]
[379184856,1755179463372,-854.23,0.00018356,2]
[379184858,1755179463382,-519.02353398,0.00018356,2]
[379184860,1755179463392,-697.12,0.00018356,2]
[379184862,1755179463401,-675.83,0.00018356,2]
[379184864,1755179463411,-776.68,0.00018356,2]
[379184866,1755179463421,-779.93,0.00018356,2]
[379184868,1755179463431,-1515.13,0.00018356,2]
[379184870,1755179463440,-229.01194923,0.00018356,2]
[379184872,1755179463450,-460.0,0.00018356,2]
[379184874,1755179463460,-460.0,0.00018356,2]
[379184876,1755179463470,-1326.43,0.00018356,2]
[379184878,1755179463480,-460.0,0.00018356,2]
[379184880,1755179463491,-460.0,0.00018356,2]
[379184882,1755179463501,-858.48,0.00018356,2]
[379184884,1755179463510,-2349.9,0.00018356,2]
[379184886,1755179463520,-1153.66,0.00018356,2]
[379184888,1755179463530,-1069.76,0.00018356,2]
[379184890,1755179463540,-585.36,0.00018356,2]
[379184892,1755179463549,-984.58,0.00018356,2]
[379184894,1755179463559,-460.0,0.00018356,2]
[379184896,1755179463569,-460.0,0.00018356,2]
[379184898,1755179463579,-460.0,0.00018356,2]
[379184900,1755179463589,-881.59,0.00018356,2]
[379184902,1755179463599,-1138.35,0.00018356,2]
[379184904,1755179463609,-180.11347149,0.00018402,2]
[379184906,1755179463619,-367.5,0.00018414,2]
[379184908,1755179463628,-151.0,0.000185,2]
[379184910,1755179463638,-151.0,0.000185,2]
[379184912,1755179463647,-255.366133,0.000185,2]
[379184914,1755179463657,-255.366137,0.000185,2]
[379184916,1755179463667,-650.29398231,0.000185,2]
[379184918,1755179463677,-151.0,0.00018543,2]
[379184920,1755179463686,-177.947782,0.00018543,2]
[379184922,1755179463696,-151.0,0.00018543,2]
[379184924,1755179463706,-151.0,0.00018616,2]
[379184926,1755179463715,-151.0,0.00018616,2]
[379184928,1755179463727,-274.084812,0.00018616,2]
[379184930,1755179463737,-2100.0,0.00018616,2]
[379184932,1755179463747,-2000.0,0.00018616,2]
[379184934,1755179463757,-214.4265461,0.00018616,2]
[379184936,1755179463767,-2000.0,0.00018616,2]
[379184938,1755179463777,-770.80642447,0.00018616,2]
[379184940,1755179463786,-151.0,0.0001863,2]
[379184942,1755179463796,-151.0,0.0001863,2]
[379184944,1755179463806,-151.0,0.0001863,2]
[379184946,1755179463815,-151.0,0.0001863,2]
[379184948,1755179463825,-203.47653186,0.0001863,2]
[379184950,1755179463834,-151.0,0.0001863,2]
[379184952,1755179463844,-159.5875323,0.0001863,2]
[379184954,1755179463855,-500.0,0.0001863,2]
[379184956,1755179463864,-500.0,0.0001863,2]
[379184958,1755179463874,-151.0,0.0001863,2]
[379184960,1755179463884,-500.0,0.0001863,2]
[379184962,1755179463893,-151.0,0.0001863,2]
[379184964,1755179463906,-151.0,0.0001863,2]
[379184966,1755179463916,-151.0,0.0001863,2]
[379184968,1755179463926,-151.0,0.0001863,2]
[379184970,1755179463935,-849.0,0.0001863,2]
[379184972,1755179463945,-500.0,0.0001863,2]
[379184974,1755179463955,-500.0,0.0001863,2]
[379184976,1755179463965,-500.0,0.0001863,2]
[379184978,1755179463976,-151.0,0.0001863,2]
[379184980,1755179463986,-500.0,0.0001863,2]
[379184982,1755179463996,-500.0,0.0001863,2]
[379184984,1755179464005,-500.0,0.0001863,2]
[379184986,1755179464015,-151.0,0.0001863,2]
[379184988,1755179464025,-151.0,0.0001863,2]
[379184990,1755179464034,-152.025604,0.0001863,2]
[379184992,1755179464044,-214.053273,0.0001863,2]
[379184994,1755179464054,-151.0,0.0001863,2]
[379184996,1755179464064,-1454.657069,0.0001863,2]
[379184998,1755179464073,-1454.657069,0.0001863,2]
[379185000,1755179464083,-194.951008,0.0001863,2]
[379185002,1755179464092,-151.0,0.0001863,2]
[379185004,1755179464102,-460.0,0.0001863,2]
[379185006,1755179464112,-460.0,0.0001863,2]
[379185008,1755179464121,-460.0,0.0001863,2]
[379185010,1755179464130,-460.0,0.0001863,2]
[379185012,1755179464140,-460.0,0.0001863,2]
[379185014,1755179464149,-460.0,0.0001863,2]
[379185016,1755179464159,-1359.69354,0.0001863,2]
[379185018,1755179464168,-38.29094627,0.0001863,2]
[379185021,1755179464182,-1321.40259373,0.0001863,2]
[379185023,1755179464192,-460.0,0.0001863,2]
[379185025,1755179464202,-460.0,0.0001863,2]
[379185027,1755179464212,-364.594738,0.0001863,2]
[379185029,1755179464221,-364.594738,0.0001863,2]
[379185031,1755179464233,-574.21,0.0001863,2]
[379185033,1755179464243,-460.0,0.0001863,2]
[379185035,1755179464253,-460.0,0.0001863,2]
[379185037,1755179464262,-178.29163504,0.0001863,2]
[379185039,1755179464273,-483.21836496,0.0001863,2]
[379185041,1755179464282,-471.61,0.0001863,2]
[379185043,1755179464294,-610.72,0.0001863,2]
[379185045,1755179464303,-494.71,0.0001863,2]
[379185047,1755179464313,-115.74320149,0.0001863,2]
[379185060,1755179464429,500.0,0.00022,120]
[379185069,1755179464509,500.0,0.00022,120]
[379185088,1755179464684,500.0,0.00022,120]
[379185276,1755179466649,500.0,0.00022,120]
[379185297,1755179466839,500.0,0.00022,120]
[379185305,1755179466906,500.0,0.00022,120]
[379185318,1755179467031,500.0,0.00022,120]
[379185337,1755179467206,500.0,0.00022,120]
[379185345,1755179467276,500.0,0.00022,120]
[379185356,1755179467384,500.0,0.00022,120]
[379185363,1755179467441,500.0,0.00022,120]
[379185374,1755179467535,500.0,0.00022,120]
[379185388,1755179467660,500.0,0.00022,120]
[379185392,1755179467692,500.0,0.00022,120]
[379185397,1755179467735,500.0,0.00022,120]
[379185403,1755179467778,500.0,0.00022,120]
[379185410,1755179467838,500.0,0.00022,120]
[379185417,1755179467893,573.27,0.00022,120]
[379185902,1755179473173,954.18882197,0.000222,69]
[379185924,1755179474355,1818.67179463,0.00015792,2]
[379185925,1755179474382,749.87311395,0.00015792,2]
[379186218,1755179477910,954.18882193,0.000222,69]
[379187508,1755179515739,4250.12688605,0.00015793,2]
[379187509,1755179515765,5000.0,0.00015793,2]
[379187510,1755179515790,5000.0,0.00015793,2]
[379187511,1755179515815,5000.0,0.00015793,2]
[379187512,1755179515839,5000.0,0.00015793,2]
[379187513,1755179515863,5000.0,0.00015793,2]
[379187514,1755179515887,5000.0,0.00015793,2]
[379187515,1755179515915,5000.0,0.00015793,2]
[379187516,1755179515940,5000.0,0.00015793,2]
[379187517,1755179515965,5000.0,0.00015793,2]
[379187518,1755179515991,5000.0,0.00015793,2]
[379187519,1755179516018,5000.0,0.00015793,2]
[379187520,1755179516043,5000.0,0.00015793,2]
[379187521,1755179516067,5000.0,0.00015793,2]
[379187522,1755179516094,5000.0,0.00015793,2]
[379187523,1755179516122,5000.0,0.00015793,2]
[379187524,1755179516148,5000.0,0.00015793,2]
[379187525,1755179516175,5000.0,0.00015793,2]
[379187526,1755179516201,5000.0,0.00015793,2]
[379187527,1755179516228,5000.0,0.00015793,2]
[379187528,1755179516255,5000.0,0.00015793,2]
[379187529,1755179516282,5000.0,0.00015793,2]
[379187530,1755179516309,5000.0,0.00015793,2]
[379187531,1755179516339,5000.0,0.00015793,2]
[379187532,1755179516367,5000.0,0.00015793,2]
[379187533,1755179516393,5000.0,0.00015793,2]
[379187534,1755179516420,5000.0,0.00015793,2]
[379187535,1755179516446,5000.0,0.00015793,2]
[379187536,1755179516474,5000.0,0.00015793,2]
[379187537,1755179516500,5000.0,0.00015793,2]
[379187538,1755179516526,5000.0,0.00015793,2]
[379187539,1755179516552,5000.0,0.00015793,2]
[379187540,1755179516579,5000.0,0.00015793,2]
[379187541,1755179516605,5000.0,0.00015793,2]
[379187542,1755179516631,5000.0,0.00015793,2]
[379187543,1755179516656,5000.0,0.00015793,2]
[379187544,1755179516682,5000.0,0.00015793,2]
[379187545,1755179516707,5000.0,0.00015793,2]
[379187546,1755179516733,5000.0,0.00015793,2]
[379187547,1755179516758,5000.0,0.00015793,2]
[379187548,1755179516785,5000.0,0.00015793,2]
[379187549,1755179516812,5000.0,0.00015793,2]
[379187550,1755179516838,5000.0,0.00015793,2]
[379187551,1755179516866,5000.0,0.00015793,2]
[379187552,1755179516894,5000.0,0.00015793,2]
[379187553,1755179516922,5000.0,0.00015793,2]
[379187554,1755179516957,5000.0,0.00015793,2]
[379187555,1755179516983,5000.0,0.00015793,2]
[379187556,1755179517010,5000.0,0.00015793,2]
[379187557,1755179517038,5000.0,0.00015793,2]
[379187558,1755179517065,5000.0,0.00015793,2]
[379187559,1755179517092,5000.0,0.00015793,2]
[379187560,1755179517119,5000.0,0.00015793,2]
[379187561,1755179517147,5000.0,0.00015793,2]
[379187562,1755179517173,5000.0,0.00015793,2]
[379187563,1755179517348,5000.0,0.00015793,2]
[379187564,1755179517375,5000.0,0.00015793,2]
[379187565,1755179517402,5000.0,0.00015793,2]
[379187566,1755179517427,5000.0,0.00015793,2]
[379187567,1755179517454,5000.0,0.00015793,2]
[379187568,1755179517480,5000.0,0.00015793,2]
[379187569,1755179517505,5000.0,0.00015793,2]
[379187570,1755179517530,5000.0,0.00015793,2]
[379187571,1755179517556,5000.0,0.00015793,2]
[379187572,1755179517582,5000.0,0.00015793,2]
[379187573,1755179517608,2645.86047422,0.00015793,2]
[379187574,1755179551647,200.0,0.00025342,120]
[379187577,1755179569013,2354.13952578,0.00015801,2]
[379187578,1755179569040,602.81923817,0.00015801,2]
[379187579,1755179575656,-152.56788803,0.00015891,2]
[379187580,1755179579221,-86.43211197,0.00015891,2]
[379187581,1755179579245,-222.78734278,0.00015891,2]
[379187582,1755179581220,-77.21265722,0.00015891,2]
[379187583,1755179581245,-301.86913479,0.00015891,2]
[379187584,1755179600812,-139.60222893,0.00015891,2]
[379187585,1755179600837,-138.72523193,0.00015891,2]
[379187586,1755179603115,-138.65995536,0.00015891,2]
[379187587,1755179603141,-156.72090242,0.00015891,2]
[379187588,1755179605342,-264.65620102,0.00015891,2]
[379187589,1755179606806,-78.62289656,0.00015891,2]
[379187590,1755179606830,-138.51731373,0.00015891,2]
[379187591,1755179608560,-212.7570842,0.00015891,2]
[379187592,1755179612124,-233.22224628,0.00015891,2]
[379187593,1755179612148,-66.77775372,0.00015891,2]
[379187594,1755179614316,-297.51251135,0.00015891,2]
[379187596,1755179617067,-135.70973493,0.00015891,2]
[379187597,1755179617090,-168.22951121,0.00015891,2]
[379187598,1755179620294,-297.78460285,0.00015891,2]
[379187599,1755179622798,-33.98588594,0.00015891,2]
[379187600,1755179622821,-183.36629048,0.00015891,2]
[379187601,1755179624837,-165.52241516,0.00015891,2]
[379187602,1755179626336,-151.11129436,0.00015891,2]
[379187603,1755179626363,-9.62431682,0.00015891,2]
[379187604,1755179628775,-151.95356051,0.00015891,2]
[379187605,1755179631738,-273.14947579,0.00015891,2]
[379187606,1755179633673,-65.27264688,0.00015891,2]
[379187607,1755179633695,-319.81271122,0.00015891,2]
[379187608,1755179635133,-180.18728878,0.00015891,2]
[379187609,1755179635157,-111.06281207,0.00015891,2]
[379187610,1755179637615,-153.24770248,0.00015891,2]
[379187611,1755179639636,-223.74338969,0.00015891,2]
[379187612,1755179642318,-11.94609576,0.00015891,2]
[379187613,1755179642347,-302.03697398,0.00015891,2]
[379187614,1755179646132,-287.52568434,0.0001589,2]
[379187615,1755179662353,-12.47431566,0.0001589,2]
[379187616,1755179662389,-197.96302602,0.00015891,2]
[379187617,1755179662419,-124.95924412,0.00015891,2]
[379187618,1755179664739,-345.91290463,0.00015891,2]
[379187619,1755179666792,-29.12785125,0.00015891,2]
[379187620,1755179666819,-140.78337193,0.00015891,2]
[379187621,1755179668931,-318.84727447,0.00015891,2]
[379187622,1755179671377,-40.3693536,0.00015891,2]
[379187623,1755179671403,-168.17585825,0.00015891,2]
[379187624,1755179672932,-250.23779046,0.00015891,2]
[379187625,1755179674433,-81.58635129,0.00015891,2]
[379187626,1755179674458,-110.09936086,0.00015891,2]
[379187627,1755179676966,-334.79107762,0.00015891,2]
[379187628,1755179679633,-55.10956152,0.00015891,2]
[379187629,1755179679663,-99.79268842,0.00015891,2]
[379187630,1755179680916,4397.18076183,0.00015793,2]
[379187631,1755179680942,5000.0,0.00015793,2]
[379187632,1755179680974,5000.0,0.00015793,2]
[379187633,1755179681000,5000.0,0.00015793,2]
[379187634,1755179681027,5000.0,0.00015793,2]
[379187635,1755179681055,5000.0,0.00015793,2]
[379187636,1755179681083,5000.0,0.00015793,2]
[379187637,1755179681113,5000.0,0.00015793,2]
[379187638,1755179681141,5000.0,0.00015793,2]
[379187639,1755179681171,5000.0,0.00015793,2]
[379187640,1755179681197,5000.0,0.00015793,2]
[379187641,1755179681223,5000.0,0.00015793,2]
[379187642,1755179681249,5000.0,0.00015793,2]
[379187643,1755179681276,5000.0,0.00015793,2]
[379187644,1755179681302,5000.0,0.00015793,2]
[379187645,1755179681328,5000.0,0.00015793,2]
[379187646,1755179681357,5000.0,0.00015793,2]
[379187647,1755179681384,5000.0,0.00015793,2]
[379187648,1755179681413,5000.0,0.00015793,2]
[379187649,1755179681440,5000.0,0.00015793,2]
[379187650,1755179681465,5000.0,0.00015793,2]
[379187651,1755179681491,5000.0,0.00015793,2]
[379187652,1755179681519,5000.0,0.00015793,2]
[379187653,1755179681547,5000.0,0.00015793,2]
[379187654,1755179681574,5000.0,0.00015793,2]
[379187655,1755179681601,5000.0,0.00015793,2]
[379187656,1755179681630,5000.0,0.00015793,2]
[379187657,1755179681655,5000.0,0.00015793,2]
[379187658,1755179681683,5000.0,0.00015793,2]
[379187659,1755179681708,5000.0,0.00015793,2]
[379187660,1755179681733,5000.0,0.00015793,2]
[379187661,1755179681758,5000.0,0.00015793,2]
[379187662,1755179681784,1571.00484739,0.00015793,2]
[379187663,1755179681843,-295.40816681,0.00015891,2]
[379187664,1755179683748,-104.79914477,0.00015891,2]
[379187665,1755179683775,-154.9306047,0.00015891,2]
[379187666,1755179683806,862.033962,0.00013699,2]
[379187667,1755179685900,-183.49468112,0.00015891,2]
[379187670,1755179689902,-161.57471418,0.00015891,2]
[379187671,1755179689928,-79.97081001,0.00015891,2]
[379187672,1755179692539,-269.37129298,0.00015891,2]
[379187673,1755179696056,-150.65789701,0.00015891,2]
[379187674,1755179696082,-7.86309332,0.00015891,2]
[379187675,1755179697815,-172.10771669,0.00015891,2]
[379187676,1755179699051,1900.0,0.0001478,2]
[379187677,1755179703402,-300.0,0.0001589,2]
[379187678,1755179703428,-0.04,0.00015891,2]
[379187679,1755179707505,-173.96688245,0.0001589,2]
[379187681,1755179718628,666.96119061,0.00015791,2]
[379187682,1755179718654,2738.76329763,0.00015791,2]
[379187685,1755179771640,169.04797875,0.00015765,2]
[379187687,1755179823939,2092.18872362,0.00015793,2]
[379187688,1755179823964,5000.0,0.00015793,2]
[379187689,1755179823988,5000.0,0.00015793,2]
[379187690,1755179824013,5000.0,0.00015793,2]
[379187691,1755179824041,5000.0,0.00015793,2]
[379187692,1755179824067,5000.0,0.00015793,2]
[379187693,1755179824092,5000.0,0.00015793,2]
[379187694,1755179824119,5000.0,0.00015793,2]
[379187695,1755179824145,5000.0,0.00015793,2]
[379187696,1755179824171,5000.0,0.00015793,2]
[379187697,1755179824197,5000.0,0.00015793,2]
[379187698,1755179824223,5000.0,0.00015793,2]
[379187699,1755179824249,5000.0,0.00015793,2]
[379187700,1755179824275,5000.0,0.00015793,2]
[379187701,1755179824300,5000.0,0.00015793,2]
[379187702,1755179824325,5000.0,0.00015793,2]
[379187703,1755179824351,5000.0,0.00015793,2]
[379187704,1755179824377,5000.0,0.00015793,2]
[379187705,1755179824410,5000.0,0.00015793,2]
[379187706,1755179824438,5000.0,0.00015793,2]
[379187707,1755179824464,5000.0,0.00015793,2]
[379187708,1755179824490,5000.0,0.00015793,2]
[379187709,1755179824516,5000.0,0.00015793,2]
[379187710,1755179824544,5000.0,0.00015793,2]
[379187711,1755179824572,5000.0,0.00015793,2]
[379187712,1755179824598,5000.0,0.00015793,2]
[379187713,1755179824623,5000.0,0.00015793,2]
[379187714,1755179824648,5000.0,0.00015793,2]
[379187715,1755179824672,5000.0,0.00015793,2]
[379187716,1755179824696,5000.0,0.00015793,2]
[379187717,1755179824720,5000.0,0.00015793,2]
[379187718,1755179824744,5000.0,0.00015793,2]
[379187719,1755179824771,5000.0,0.00015793,2]
[379187720,1755179824795,5000.0,0.00015793,2]
[379187721,1755179824821,3952.64252023,0.00015793,2]
[379187722,1755179835669,1047.35747977,0.00015801,2]
[379187723,1755179835695,3952.64252023,0.00015801,2]
[379187724,1755179844321,1047.35747977,0.00015801,2]
[379187725,1755179844346,3952.64252023,0.00015801,2]
[379187726,1755179852186,1047.35747977,0.00015801,2]
[379187727,1755179852210,3952.64252023,0.00015801,2]
[379187728,1755179868531,1047.35747977,0.00015801,2]
[379187729,1755179868558,3952.64252023,0.00015801,2]
[379187730,1755179870034,302.0,0.00026,120]
[379187731,1755179884855,1047.35747977,0.00015801,2]
[379187732,1755179884882,3952.64252023,0.00015801,2]
[379187734,1755179900417,1047.35747977,0.00015801,2]
[379187735,1755179900443,3952.64252023,0.00015801,2]
[379187736,1755179916595,1047.35747977,0.00015801,2]
[379187737,1755179916623,3952.64252023,0.00015801,2]
[379187738,1755179932638,1047.35747977,0.00015801,2]
[379187739,1755179932662,3952.64252023,0.00015801,2]
[379187740,1755179946798,572.51329319,0.000222,69]
[379187741,1755179951815,572.51329315,0.000222,69]
[379187742,1755179956838,572.51329315,0.000222,69]
[379187743,1755179985965,1047.35747977,0.00015792,2]
[379187744,1755179985992,5000.0,0.00015792,2]
[379187745,1755179986018,5000.0,0.00015792,2]
[379187746,1755179986045,5000.0,0.00015792,2]
[379187747,1755179986071,5000.0,0.00015792,2]
[379187748,1755179986097,5000.0,0.00015792,2]
[379187749,1755179986123,5000.0,0.00015792,2]
[379187750,1755179986149,5000.0,0.00015792,2]
[379187751,1755179986175,5000.0,0.00015792,2]
[379187752,1755179986200,5000.0,0.00015792,2]
[379187753,1755179986224,5000.0,0.00015792,2]
[379187754,1755179986249,5000.0,0.00015792,2]
[379187755,1755179986272,5000.0,0.00015792,2]
[379187756,1755179986297,5000.0,0.00015792,2]
[379187757,1755179986321,5000.0,0.00015792,2]
[379187758,1755179986346,5000.0,0.00015792,2]
[379187759,1755179986371,5000.0,0.00015792,2]
[379187760,1755179986394,5000.0,0.00015792,2]
[379187761,1755179986420,5000.0,0.00015792,2]
[379187762,1755179986448,5000.0,0.00015792,2]
[379187763,1755179986472,5000.0,0.00015792,2]
[379187764,1755179986498,5000.0,0.00015792,2]
[379187765,1755179986523,1203.22588504,0.00015792,2]
[379187766,1755180001713,2980.00892721,0.00015789,2]
[379187768,1755180041600,376.425044,0.00023,30]
[379187769,1755180041928,376.425044,0.00023,30]
[379187770,1755180042243,376.425044,0.00023,30]
[379187771,1755180042571,376.425044,0.00023,30]
[379187772,1755180042894,376.425044,0.00023,30]
[379187773,1755180089924,163.861093,0.0002162,30]
[379187774,1755180101444,203.444213,0.00023,30]
[379187775,1755180101747,203.444213,0.00023,30]
[379187776,1755180102044,203.444213,0.00023,30]
[379187777,1755180102380,203.444213,0.00023,30]
[379187778,1755180102733,203.444213,0.00023,30]
[379187780,1755180132914,156.94339,0.00023,30]
[379187781,1755180148896,816.76518775,0.0001579,2]
[379187782,1755180148922,5000.0,0.0001579,2]
[379187783,1755180148948,5000.0,0.0001579,2]
[379187784,1755180148974,5000.0,0.0001579,2]
[379187785,1755180149000,5000.0,0.0001579,2]
[379187786,1755180149026,5000.0,0.0001579,2]
[379187787,1755180149057,5000.0,0.0001579,2]
[379187788,1755180149084,5000.0,0.0001579,2]
[379187789,1755180149112,5000.0,0.0001579,2]
[379187790,1755180149137,5000.0,0.0001579,2]
[379187791,1755180149164,5000.0,0.0001579,2]
[379187792,1755180149190,5000.0,0.0001579,2]
[379187793,1755180149217,5000.0,0.0001579,2]
[379187794,1755180149243,5000.0,0.0001579,2]
[379187795,1755180149269,5000.0,0.0001579,2]
[379187796,1755180149297,5000.0,0.0001579,2]
[379187797,1755180149325,5000.0,0.0001579,2]
[379187798,1755180149350,5000.0,0.0001579,2]
[379187799,1755180149376,5000.0,0.0001579,2]
[379187800,1755180149400,5000.0,0.0001579,2]
[379187801,1755180149425,5000.0,0.0001579,2]
[379187802,1755180149449,5000.0,0.0001579,2]
[379187803,1755180149473,4183.23481225,0.0001579,2]
[379187804,1755180155400,163.861093,0.0002162,30]
[379187805,1755180163395,434.901943,0.00023,30]
[379187806,1755180163710,434.901943,0.00023,30]
[379187807,1755180164160,434.901943,0.00023,30]
[379187808,1755180164335,434.901943,0.00023,30]
[379187809,1755180164656,434.901943,0.00023,30]
[379187811,1755180213699,163.861094,0.0002208,30]
[379187812,1755180291723,246.66470153,0.00015792,2]
[379187813,1755180291752,816.76518775,0.00015792,2]
[379187814,1755180291777,1544.07792202,0.00015792,2]
[379187815,1755180303248,2144.0,0.00023,30]
[379187816,1755180303280,1004.0,0.00023,30]
[379187817,1755180303335,2635.55,0.00023,30]
[379187818,1755180303370,210.0,0.00023,30]
[379187819,1755180303408,200.0,0.00023,30]
[379187820,1755180306487,3455.92207798,0.00015789,2]
[379187821,1755180306517,5000.0,0.00015789,2]
[379187822,1755180306549,5000.0,0.00015789,2]
[379187823,1755180306578,5000.0,0.00015789,2]
[379187824,1755180306611,5000.0,0.00015789,2]
[379187825,1755180306642,5000.0,0.00015789,2]
[379187826,1755180306673,5000.0,0.00015789,2]
[379187827,1755180306703,5000.0,0.00015789,2]
[379187828,1755180306733,5000.0,0.00015789,2]
[379187829,1755180306762,5000.0,0.00015789,2]
[379187830,1755180306791,5000.0,0.00015789,2]
[379187831,1755180306821,5000.0,0.00015789,2]
[379187832,1755180306850,5000.0,0.00015789,2]
[379187833,1755180306880,5000.0,0.00015789,2]
[379187834,1755180306918,5000.0,0.00015789,2]
[379187835,1755180306952,5000.0,0.00015789,2]
[379187836,1755180306984,5000.0,0.00015789,2]
[379187837,1755180307018,5000.0,0.00015789,2]
[379187838,1755180307050,5000.0,0.00015789,2]
[379187839,1755180307082,5000.0,0.00015789,2]
[379187840,1755180307113,5000.0,0.00015789,2]
[379187841,1755180307149,5000.0,0.00015789,2]
[379187842,1755180307180,5000.0,0.00015789,2]
[379187843,1755180307212,1435.19706538,0.00015789,2]